Workbook

Sheet 18 мерзімдік бюджет
B1: компания бюджеті
G2: БАСТАЛУ КҮНІ | H2: 2011-01-01 | I2: МЕРЗІМ ҰЗАҚТЫҒЫ (КҮН) | K2: 14 | L2: АЯҚТАЛУ КҮНІ | M2: =TEXT(T5,"ДД.ММ.ГГГГ") -> 26.08.2012
C5: =UPPER(TEXT(H2,"Д МММ")) -> 1 ҚАҢ | D5: =UPPER(TEXT(C5+DayInterval,"Д МММ")) -> 15 ҚАҢ | E5: =UPPER(TEXT(D5+DayInterval,"Д МММ")) -> 29 ҚАҢ | F5: =UPPER(TEXT(E5+DayInterval,"Д МММ")) -> 12 АҚП | G5: =UPPER(TEXT(F5+DayInterval,"Д МММ")) -> 26 АҚП | H5: =UPPER(TEXT(G5+DayInterval,"Д МММ")) -> 11 НАУ | I5: =UPPER(TEXT(H5+DayInterval,"Д МММ")) -> 25 НАУ | J5: =UPPER(TEXT(I5+DayInterval,"Д МММ")) -> 8 СӘУ | K5: =UPPER(TEXT(J5+DayInterval,"Д МММ")) -> 22 СӘУ | L5: =UPPER(TEXT(K5+DayInterval,"Д МММ")) -> 6 МАМ | M5: =UPPER(TEXT(L5+DayInterval,"Д МММ")) -> 20 МАМ | N5: =UPPER(TEXT(M5+DayInterval,"Д МММ")) -> 3 МАУ | O5: =UPPER(TEXT(N5+DayInterval,"Д МММ")) -> 17 МАУ | P5: =UPPER(TEXT(O5+DayInterval,"Д МММ")) -> 1 ШІЛ | Q5: =UPPER(TEXT(P5+DayInterval,"Д МММ")) -> 15 ШІЛ | R5: =UPPER(TEXT(Q5+DayInterval,"Д МММ")) -> 29 ШІЛ | S5: =UPPER(TEXT(R5+DayInterval,"Д МММ")) -> 12 ТАМ | T5: =UPPER(TEXT(S5+DayInterval,"Д МММ")) -> 26 ТАМ | U5: ҚОРЫТЫНДЫ | V5: ТРЕНД
B6: ТАЗА ПАЙДА | C6: =IncomeTable[[#Totals],[1-АПТА]]-ШығындарКестесі[[#Totals],[1-АПТА]] -> Т1,750.00 | D6: =IncomeTable[[#Totals],[2-АПТА]]-ШығындарКестесі[[#Totals],[2-АПТА]] -> Т2,236.00 | E6: =IncomeTable[[#Totals],[3-АПТА]]-ШығындарКестесі[[#Totals],[3-АПТА]] -> Т1,442.00 | F6: =IncomeTable[[#Totals],[4-АПТА]]-ШығындарКестесі[[#Totals],[4-АПТА]] -> Т2,253.00 | G6: =IncomeTable[[#Totals],[5-АПТА]]-ШығындарКестесі[[#Totals],[5-АПТА]] -> Т1,533.00 | H6: =IncomeTable[[#Totals],[6-АПТА]]-ШығындарКестесі[[#Totals],[6-АПТА]] -> Т1,086.00 | I6: =IncomeTable[[#Totals],[7-АПТА]]-ШығындарКестесі[[#Totals],[7-АПТА]] -> Т1,594.00 | J6: =IncomeTable[[#Totals],[8-АПТА]]-ШығындарКестесі[[#Totals],[8-АПТА]] -> 0 | K6: =IncomeTable[[#Totals],[9-АПТА]]-ШығындарКестесі[[#Totals],[9-АПТА]] -> 0 | L6: =IncomeTable[[#Totals],[10-АПТА]]-ШығындарКестесі[[#Totals],[10-АПТА]] -> 0 | M6: =IncomeTable[[#Totals],[11-АПТА]]-ШығындарКестесі[[#Totals],[11-АПТА]] -> 0 | N6: =IncomeTable[[#Totals],[12-АПТА]]-ШығындарКестесі[[#Totals],[12-АПТА]] -> 0 | O6: =IncomeTable[[#Totals],[13-АПТА]]-ШығындарКестесі[[#Totals],[13-АПТА]] -> 0 | P6: =IncomeTable[[#Totals],[14-АПТА]]-ШығындарКестесі[[#Totals],[14-АПТА]] -> 0 | Q6: =IncomeTable[[#Totals],[15-АПТА]]-ШығындарКестесі[[#Totals],[15-АПТА]] -> 0 | R6: =IncomeTable[[#Totals],[16-АПТА]]-ШығындарКестесі[[#Totals],[16-АПТА]] -> 0 | S6: =IncomeTable[[#Totals],[17-АПТА]]-ШығындарКестесі[[#Totals],[17-АПТА]] -> 0 | T6: =IncomeTable[[#Totals],[18-АПТА]]-ШығындарКестесі[[#Totals],[18-АПТА]] -> 0 | U6: =IncomeTable[[#Totals],[ҚОРЫТЫНДЫ]]-ШығындарКестесі[[#Totals],[ҚОРЫТЫНДЫ]] -> Т11,894.00
A8: кіріс
B9: 1-КІРІС ЭЛЕМЕНТІ | C9: Т3,000.00 | D9: Т3,500.00 | E9: Т2,978.00 | F9: Т3,384.00 | G9: Т2,858.00 | H9: Т2,809.00 | I9: Т3,220.00 | U9: =SUM(IncomeTable[[#This Row],[1-АПТА]:[18-АПТА]]) -> Т21,749.00
B10: 2-КІРІС ЭЛЕМЕНТІ | C10: 1150.00 | D10: 1200.00 | E10: 1144.00 | F10: 1400.00 | G10: 1358.00 | H10: 1154.00 | I10: 1245.00 | U10: =SUM(IncomeTable[[#This Row],[1-АПТА]:[18-АПТА]]) -> 8651.00
B11: 3-КІРІС ЭЛЕМЕНТІ | C11: 300.00 | D11: 350.00 | E11: 392.00 | F11: 326.00 | G11: 381.00 | H11: 364.00 | I11: 315.00 | U11: =SUM(IncomeTable[[#This Row],[1-АПТА]:[18-АПТА]]) -> 2428.00
B12: ЖАЛПЫ КІРІС | C12: =SUBTOTAL(109,IncomeTable[1-АПТА]) -> Т4,450.00 | D12: =SUBTOTAL(109,IncomeTable[2-АПТА]) -> Т5,050.00 | E12: =SUBTOTAL(109,IncomeTable[3-АПТА]) -> Т4,514.00 | F12: =SUBTOTAL(109,IncomeTable[4-АПТА]) -> Т5,110.00 | G12: =SUBTOTAL(109,IncomeTable[5-АПТА]) -> Т4,597.00 | H12: =SUBTOTAL(109,IncomeTable[6-АПТА]) -> Т4,327.00 | I12: =SUBTOTAL(109,IncomeTable[7-АПТА]) -> Т4,780.00 | J12: =SUBTOTAL(109,IncomeTable[8-АПТА]) -> 0 | K12: =SUBTOTAL(109,IncomeTable[9-АПТА]) -> 0 | L12: =SUBTOTAL(109,IncomeTable[10-АПТА]) -> 0 | M12: =SUBTOTAL(109,IncomeTable[11-АПТА]) -> 0 | N12: =SUBTOTAL(109,IncomeTable[12-АПТА]) -> 0 | O12: =SUBTOTAL(109,IncomeTable[13-АПТА]) -> 0 | P12: =SUBTOTAL(109,IncomeTable[14-АПТА]) -> 0 | Q12: =SUBTOTAL(109,IncomeTable[15-АПТА]) -> 0 | R12: =SUBTOTAL(109,IncomeTable[16-АПТА]) -> 0 | S12: =SUBTOTAL(109,IncomeTable[17-АПТА]) -> 0 | T12: =SUBTOTAL(109,IncomeTable[18-АПТА]) -> 0 | U12: =SUBTOTAL(109,IncomeTable[ҚОРЫТЫНДЫ]) -> Т32,828.00
A14: шығын
B15: ЖАЛАҚЫ | C15: Т1,500.00 | D15: Т1,577.00 | E15: Т1,823.00 | F15: Т1,529.00 | G15: Т1,759.00 | H15: Т1,947.00 | I15: Т1,875.00 | U15: =SUM(ШығындарКестесі[[#This Row],[1-АПТА]:[18-АПТА]]) -> Т12,010.00
B16: ЖАЛГЕРЛІК АҚЫ | C16: 1000.00 | D16: 1000.00 | E16: 1000.00 | F16: 1000.00 | G16: 1000.00 | H16: 1000.00 | I16: 1000.00 | U16: =SUM(ШығындарКестесі[[#This Row],[1-АПТА]:[18-АПТА]]) -> 7000.00
B17: ЖАРЫҚ | C17: 40.00 | D17: 43.00 | E17: 40.00 | F17: 42.00 | G17: 45.00 | H17: 40.00 | I17: 42.00 | U17: =SUM(ШығындарКестесі[[#This Row],[1-АПТА]:[18-АПТА]]) -> 292.00
B18: ТЕЛЕФОН | C18: 12.00 | D18: 11.00 | E18: 13.00 | F18: 14.00 | G18: 11.00 | H18: 15.00 | I18: 15.00 | U18: =SUM(ШығындарКестесі[[#This Row],[1-АПТА]:[18-АПТА]]) -> 91.00
B19: ИНТЕРНЕТ | C19: 15.00 | D19: 15.00 | E19: 15.00 | F19: 15.00 | G19: 15.00 | H19: 15.00 | I19: 15.00 | U19: =SUM(ШығындарКестесі[[#This Row],[1-АПТА]:[18-АПТА]]) -> 105.00
B20: СУ | C20: 11.00 | D20: 10.00 | E20: 13.00 | F20: 10.00 | G20: 13.00 | H20: 10.00 | I20: 12.00 | U20: =SUM(ШығындарКестесі[[#This Row],[1-АПТА]:[18-АПТА]]) -> 79.00
B21: ГАЗ | C21: 23.00 | D21: 27.00 | E21: 26.00 | F21: 27.00 | G21: 22.00 | H21: 29.00 | I21: 21.00 | U21: =SUM(ШығындарКестесі[[#This Row],[1-АПТА]:[18-АПТА]]) -> 175.00
B22: ҚОСҚЫСТЫ ТАЗАЛАУ | C22: 4.00 | D22: 4.00 | E22: 4.00 | F22: 4.00 | G22: 4.00 | H22: 4.00 | I22: 4.00 | U22: =SUM(ШығындарКестесі[[#This Row],[1-АПТА]:[18-АПТА]]) -> 28.00
B23: КАБЕЛЬДІ ТЕЛЕАРНА | C23: 10.00 | D23: 10.00 | E23: 10.00 | F23: 10.00 | G23: 10.00 | H23: 10.00 | I23: 10.00 | U23: =SUM(ШығындарКестесі[[#This Row],[1-АПТА]:[18-АПТА]]) -> 70.00
B24: КЕҢСЕ КЕРЕК-ЖАРАҚТАРЫ | C24: 25.00 | D24: 57.00 | E24: 68.00 | F24: 146.00 | G24: 125.00 | H24: 111.00 | I24: 132.00 | U24: =SUM(ШығындарКестесі[[#This Row],[1-АПТА]:[18-АПТА]]) -> 664.00
B25: САҚТАНДЫРУ | C25: 60.00 | D25: 60.00 | E25: 60.00 | F25: 60.00 | G25: 60.00 | H25: 60.00 | I25: 60.00 | U25: =SUM(ШығындарКестесі[[#This Row],[1-АПТА]:[18-АПТА]]) -> 420.00
B26: ЖАЛПЫ ШЫҒЫН | C26: =SUBTOTAL(109,ШығындарКестесі[1-АПТА]) -> Т2,700.00 | D26: =SUBTOTAL(109,ШығындарКестесі[2-АПТА]) -> Т2,814.00 | E26: =SUBTOTAL(109,ШығындарКестесі[3-АПТА]) -> Т3,072.00 | F26: =SUBTOTAL(109,ШығындарКестесі[4-АПТА]) -> Т2,857.00 | G26: =SUBTOTAL(109,ШығындарКестесі[5-АПТА]) -> Т3,064.00 | H26: =SUBTOTAL(109,ШығындарКестесі[6-АПТА]) -> Т3,241.00 | I26: =SUBTOTAL(109,ШығындарКестесі[7-АПТА]) -> Т3,186.00 | J26: =SUBTOTAL(109,ШығындарКестесі[8-АПТА]) -> 0 | K26: =SUBTOTAL(109,ШығындарКестесі[9-АПТА]) -> 0 | L26: =SUBTOTAL(109,ШығындарКестесі[10-АПТА]) -> 0 | M26: =SUBTOTAL(109,ШығындарКестесі[11-АПТА]) -> 0 | N26: =SUBTOTAL(109,ШығындарКестесі[12-АПТА]) -> 0 | O26: =SUBTOTAL(109,ШығындарКестесі[13-АПТА]) -> 0 | P26: =SUBTOTAL(109,ШығындарКестесі[14-АПТА]) -> 0 | Q26: =SUBTOTAL(109,ШығындарКестесі[15-АПТА]) -> 0 | R26: =SUBTOTAL(109,ШығындарКестесі[16-АПТА]) -> 0 | S26: =SUBTOTAL(109,ШығындарКестесі[17-АПТА]) -> 0 | T26: =SUBTOTAL(109,ШығындарКестесі[18-АПТА]) -> 0 | U26: =SUBTOTAL(109,ШығындарКестесі[ҚОРЫТЫНДЫ]) -> Т20,934.00
